bitfinex/quotes_SOLUSD_20250604
["timestamp","ask_amount","ask_price","bid_price","bid_amount"]
[1749000851454,0.28432314,156.77,156.73,39.78]
[1749000851879,14.44547767,156.74,156.73,39.78]
[1749000852269,28.89095534,156.74,156.72,10.58]
[1749000852473,28.89095534,156.73,156.72,10.58]
[1749000852666,28.89095534,156.73,156.72,39.76]
[1749000853062,28.89095534,156.73,156.68,10.58]
[1749000853267,14.44547767,156.69,156.68,10.58]
[1749000853682,14.44547767,156.69,156.68,39.78]
[1749000854184,14.44547767,156.69,156.64,10.58]
[1749000854386,1.80376157,156.71,156.64,10.58]
[1749000854387,14.44547767,156.65,156.64,10.58]
[1749000854774,14.44547767,156.65,156.64,50.36]
[1749000855374,28.89095534,156.65,156.64,39.76]
[1749000855904,0.28432314,156.67,156.6,10.58]
[1749000856106,14.44547767,156.65,156.61,39.78]
[1749000857187,14.44547767,156.68,156.64,14.44547767]
[1749000857377,14.44547767,156.67,156.65,39.78]
[1749000857580,14.44547767,156.67,156.66,10.58]
[1749000858897,14.44547767,156.68,156.66,10.58]
[1749000860895,14.44547767,156.68,156.66,99.18]
[1749000861994,14.44547767,156.69,156.66,99.18]
[1749000862574,14.44547767,156.7,156.66,99.18]
[1749000863396,1.6616,156.71,156.66,113.62547767]
[1749000863577,14.44547767,156.7,156.66,99.18]
[1749000865290,14.44547767,156.71,156.66,113.62547767]
[1749000867215,14.44547767,156.67,156.66,10.58]
[1749000867380,14.44547767,156.67,156.66,50.36]
[1749000871309,14.44547767,156.68,156.66,50.36]
[1749000872111,14.44547767,156.67,156.66,50.36]
[1749000872284,14.44547767,156.68,156.66,50.36]
[1749000872686,14.44547767,156.7,156.66,138.96]
[1749000872936,14.44547767,156.68,156.66,138.96]
[1749000873089,14.44547767,156.68,156.66,50.36]
[1749000873413,14.44547767,156.67,156.66,10.58]
[1749000873626,14.44547767,156.67,156.66,50.36]
[1749000876302,14.44547767,156.68,156.66,50.36]
[1749000876509,14.44547767,156.69,156.66,50.36]
[1749000877723,14.44547767,156.68,156.66,50.36]
[1749000878721,14.44547767,156.68,156.66,138.96]
[1749000879317,14.44547767,156.67,156.66,50.36]
[1749000879529,14.44547767,156.67,156.66,10.58]
[1749000879720,14.44547767,156.67,156.66,50.34]
[1749000879930,14.44547767,156.67,156.62,10.56]
[1749000880127,8.0219,156.69,156.63,39.76]
[1749000881048,1.5391,156.69,156.63,39.76]
[1749000881248,14.44547767,156.68,156.64,14.44547767]
[1749000881627,14.44547767,156.68,156.63,54.20547767]
[1749000882050,14.44547767,156.67,156.63,54.20547767]
[1749000882350,26.0,156.72,156.64,14.44547767]
[1749000882548,8.0502,156.73,156.66,14.44547767]
[1749000882549,14.44547767,156.7,156.66,14.44547767]
[1749000882725,14.44547767,156.7,156.67,39.76]
[1749000883066,14.44547767,156.7,156.68,10.56]
[1749000887353,14.44547767,156.71,156.68,10.56]
[1749000887533,14.44547767,156.71,156.68,99.16]
[1749000887952,14.44547767,156.72,156.68,99.16]
[1749000888523,26.0,156.75,156.69,14.44547767]
[1749000888742,14.44547767,156.74,156.7,14.44547767]
[1749000888943,14.44547767,156.74,156.71,39.76]
[1749000890150,14.44547767,156.75,156.71,128.36]
[1749000890339,14.44547767,156.75,156.71,39.76]
[1749000891640,14.44547767,156.74,156.71,39.76]
[1749000892267,1.6382,156.77,156.71,39.76]
[1749000892268,14.44547767,156.75,156.71,39.76]
[1749000892750,14.44547767,156.75,156.71,54.20547767]
[1749000893059,14.44547767,156.74,156.71,39.76]
[1749000894144,14.44547767,156.72,156.7,88.6]
[1749000894460,14.44547767,156.71,156.7,88.6]
[1749000894661,14.44547767,156.71,156.7,39.74]
[1749000894851,14.44547767,156.71,156.68,10.56]
[1749000895362,14.44547767,156.71,156.69,39.74]
[1749000896136,14.44547767,156.71,156.68,10.56]
[1749000896340,14.44547767,156.71,156.69,39.74]
[1749000898072,14.44547767,156.7,156.69,39.74]
[1749000898565,14.44547767,156.7,156.68,10.56]
[1749000898771,14.44547767,156.69,156.68,10.56]
[1749000899064,14.44547767,156.69,156.68,50.3]
[1749000902167,14.44547767,156.7,156.68,50.3]
[1749000905339,1.6382,156.77,156.68,153.34547767]
[1749000905658,14.44547767,156.74,156.7,14.44547767]
[1749000907286,27.6382,156.77,156.7,103.04547767]
[1749000907471,1.6382,156.77,156.72,14.44547767]
[1749000907674,14.44547767,156.76,156.73,39.72]
[1749000907971,14.44547767,156.76,156.74,10.54]
[1749000912571,14.44547767,156.79,156.75,14.44547767]
[1749000913107,14.44547767,156.79,156.75,103.04547767]
[1749000913665,1.6205,156.81,156.76,14.44547767]
[1749000913894,14.44547767,156.8,156.77,39.72]
[1749000915700,14.44547767,156.79,156.77,39.72]
[1749000915867,14.44547767,156.79,156.78,39.7]
[1749000919089,14.44547767,156.8,156.78,39.7]
[1749000920087,14.44547767,156.8,156.75,14.44547767]
[1749000920422,14.44547767,156.8,156.76,39.7]
[1749000921517,14.44547767,156.78,156.74,10.54]
[1749000921678,14.44547767,156.75,156.74,10.54]
[1749000921888,14.44547767,156.75,156.74,50.24]
[1749000923810,14.44547767,156.75,156.74,10.54]
[1749000923988,14.44547767,156.75,156.74,50.24]
[1749000925681,14.44547767,156.75,156.74,10.54]
[1749000925989,14.44547767,156.75,156.74,50.24]
[1749000926216,26.0,156.72,156.7,10.5]
[1749000926431,14.44547767,156.71,156.66,65.58]
[1749000926637,14.44547767,156.67,156.66,65.58]
[1749000926936,14.44547767,156.67,156.66,105.28]
[1749000927143,14.44547767,156.67,156.66,65.58]
[1749000927305,14.44547767,156.67,156.66,105.26]
[1749000928518,14.44547767,156.67,156.66,65.58]
[1749000928712,14.44547767,156.67,156.66,105.28]
[1749000929222,14.44547767,156.67,156.66,105.26]
[1749000930120,14.44547767,156.67,156.66,65.58]
[1749000930319,14.44547767,156.67,156.66,10.5]
[1749000930517,16.06657767,156.67,156.62,10.5]
[1749000930715,16.06657767,156.67,156.57,30.44482467]
[1749000930716,14.44547767,156.63,156.61,10.5]
[1749000931018,1.6211,156.67,156.61,10.5]
[1749000931019,14.44547767,156.62,156.61,10.5]
[1749000931221,14.44547767,156.62,156.61,50.2]
[1749000931936,14.44547767,156.63,156.61,50.2]
[1749000932314,14.44547767,156.62,156.61,50.2]
[1749000934611,1.76326157,156.67,156.61,50.2]
[1749000934612,14.44547767,156.63,156.61,50.2]
[1749000935726,14.44547767,156.62,156.61,50.2]
[1749000935947,14.44547767,156.62,156.61,10.5]
[1749000936147,26.0,156.64,156.45,6.1291]
[1749000936148,27.5317,156.6,156.45,6.1291]
[1749000936453,26.0,156.53,156.47,3.24637962]
[1749000936644,14.44547767,156.56,156.48,42.0]
[1749000936645,26.0,156.55,156.48,42.0]
[1749000936846,26.0,156.55,156.47,3.24637962]
[1749000937012,14.44547767,156.5,156.49,42.02]
[1749000937218,19.38367022,156.5,156.49,42.02]
[1749000937548,26.0,156.55,156.49,42.02]
[1749000937745,26.0,156.55,156.48,11.7]
[1749000938040,19.38367022,156.5,156.49,42.02]
[1749000938240,26.0,156.55,156.49,42.02]
[1749000938241,19.38367022,156.51,156.49,42.02]
[1749000938848,19.38367022,156.51,156.44,18.64964886]
[1749000938849,19.38367022,156.5,156.44,12.2]
[1749000939037,19.38367022,156.46,156.45,42.6]
[1749000939237,19.38367022,156.46,156.44,12.2]
[1749000939442,19.38367022,156.46,156.45,42.66]
[1749000940150,19.38367022,156.46,156.39,12.2]
[1749000940316,6.2324,156.48,156.4,42.72]
[1749000940317,19.38367022,156.43,156.4,42.72]
[1749000940515,6.2324,156.48,156.39,12.2]
[1749000940516,19.38367022,156.42,156.41,42.72]
[1749000940823,6.2324,156.48,156.41,42.72]
[1749000941027,19.38367022,156.43,156.39,31.58367022]
[1749000941250,6.2324,156.48,156.4,42.76]
[1749000941470,6.2324,156.48,156.41,42.78]
[1749000941767,19.38367022,156.43,156.41,42.78]
[1749000942373,19.38367022,156.44,156.41,42.78]
[1749000942860,19.38367022,156.43,156.41,42.78]
[1749000943261,19.38367022,156.44,156.41,42.78]
[1749000944031,19.38367022,156.45,156.41,42.78]
[1749000944233,19.38367022,156.46,156.42,19.38367022]
[1749000944849,19.38367022,156.46,156.41,62.16367022]
[1749000945048,19.38367022,156.45,156.41,62.16367022]
[1749000945262,19.38367022,156.45,156.42,42.7]
[1749000946570,19.38367022,156.44,156.42,42.7]
[1749000946933,19.38367022,156.45,156.42,42.7]
[1749000947951,19.38367022,156.44,156.42,42.7]
[1749000948475,19.38367022,156.43,156.39,12.2]
[1749000948689,19.38367022,156.44,156.4,61.98367022]
[1749000949794,19.38367022,156.45,156.4,19.38367022]
[1749000950091,19.38367022,156.45,156.41,42.56]
[1749000950289,6.2324,156.48,156.42,42.54]
[1749000950290,19.38367022,156.44,156.42,42.54]
[1749000951079,19.38367022,156.45,156.42,42.54]
[1749000951277,19.38367022,156.45,156.4,19.38367022]
[1749000952290,19.38367022,156.44,156.4,19.38367022]
[1749000952472,19.38367022,156.44,156.41,42.52]
[1749000952674,19.38367022,156.46,156.42,19.38367022]
[1749000953080,19.38367022,156.47,156.42,19.38367022]
[1749000955481,7.8664,156.52,156.45,19.38367022]
[1749000955811,7.8664,156.52,156.44,26.0]
[1749000955812,7.8664,156.52,156.46,74.00367022]
[1749000955975,19.38367022,156.5,156.46,74.00367022]
[1749000956983,19.38367022,156.51,156.46,74.00367022]
[1749000957370,20.99337022,156.52,156.48,19.38367022]
[1749000957799,20.99337022,156.52,156.47,19.38367022]
[1749000957999,20.99337022,156.52,156.48,19.38367022]
[1749000958578,1.6097,156.52,156.48,19.38367022]
[1749000958790,1.6097,156.52,156.46,54.62]
[1749000958791,19.38367022,156.55,156.5,19.38367022]
[1749000958991,7.7789,156.56,156.51,61.70367022]
[1749000959196,12.90889417,156.58,156.53,12.90889417]
[1749000960877,12.90889417,156.59,156.55,12.90889417]
[1749000961070,12.90889417,156.59,156.56,42.26]
[1749000961477,1.5222,156.6,156.56,42.26]
[1749000961797,14.43109417,156.6,156.56,42.26]
[1749000962500,12.90889417,156.59,156.56,42.26]
[1749000962700,12.90889417,156.59,156.57,42.22]
[1749000963381,12.90889417,156.58,156.52,12.22]
[1749000963693,12.90889417,156.55,156.53,42.22]
[1749000963895,12.90889417,156.56,156.53,42.22]
[1749000965098,12.90889417,156.56,156.52,38.22]
[1749000965304,1.5222,156.6,156.53,42.18]
[1749000965502,12.90889417,156.56,156.53,42.18]
[1749000966281,12.90889417,156.54,156.52,12.22]
[1749000966586,12.90889417,156.53,156.52,12.22]
[1749000966797,12.90889417,156.54,156.52,54.34]
[1749000966998,12.90889417,156.53,156.52,12.22]
[1749000967304,12.90889417,156.53,156.52,54.32]
[1749000969307,12.90889417,156.53,156.52,54.26]
[1749000969508,12.90889417,156.53,156.52,12.22]
[1749000969810,12.90889417,156.53,156.52,54.26]
[1749000971617,12.90889417,156.53,156.52,54.2]
[1749000976884,20.69059417,156.53,156.47,26.0]
[1749000977112,12.90889417,156.5,156.48,53.74]
[1749000977305,12.90889417,156.51,156.48,11.9]
[1749000977586,12.90889417,156.51,156.49,41.82]
[1749000977803,12.90889417,156.51,156.48,11.9]
[1749000978112,12.90889417,156.51,156.49,41.8]
[1749000978485,12.90889417,156.51,156.5,41.78]
[1749000981413,12.90889417,156.51,156.48,11.9]
[1749000981607,12.90889417,156.49,156.48,11.9]
[1749000981803,12.90889417,156.49,156.48,53.6]
[1749000981985,12.90889417,156.49,156.48,11.9]
[1749000982187,12.90889417,156.49,156.48,53.6]
[1749000982442,12.90889417,156.49,156.48,11.9]
[1749000982627,12.90889417,156.49,156.48,53.58]
[1749000982806,12.90889417,156.49,156.48,11.9]
[1749000982994,12.90889417,156.49,156.48,53.58]
[1749000984187,12.90889417,156.49,156.48,11.9]
[1749000984387,12.90889417,156.49,156.48,53.54]
[1749000988663,25.81778834,156.49,156.48,41.54]
[1749000988877,1.604,156.48,156.43,11.9]
[1749000989157,12.90889417,156.44,156.43,11.9]
[1749000989361,12.90889417,156.44,156.43,53.42]
[1749000990182,12.90889417,156.45,156.43,53.42]
[1749000990858,12.90889417,156.45,156.44,41.5]
[1749000991658,1.604,156.48,156.44,41.5]
[1749000991876,12.90889417,156.45,156.44,41.5]
[1749000992084,12.90889417,156.45,156.44,41.46]
[1749000993078,12.90889417,156.45,156.43,11.9]
[1749000993249,14.51289417,156.48,156.44,41.42]
[1749000993454,12.90889417,156.45,156.44,41.42]
[1749000994058,12.90889417,156.45,156.43,11.9]
[1749000994257,14.51289417,156.48,156.44,41.4]
[1749000995267,12.90889417,156.45,156.44,41.4]
[1749000996381,12.90889417,156.45,156.43,11.9]
[1749000996677,12.90889417,156.44,156.43,11.9]
[1749000996852,12.90889417,156.44,156.43,53.24]
[1749000998882,12.90889417,156.45,156.43,53.24]
[1749000999958,12.90889417,156.44,156.43,53.24]
[1749001000561,27.604,156.48,156.43,53.24]
[1749001000975,12.90889417,156.44,156.43,53.24]
[1749001002884,12.90889417,156.48,156.43,66.14889417]
[1749001004261,12.90889417,156.47,156.43,53.24]
[1749001004462,26.0,156.5,156.43,53.24]
[1749001004463,12.90889417,156.46,156.43,53.24]
[1749001005280,27.5352,156.52,156.43,53.24]
[1749001005565,12.90889417,156.5,156.45,12.90889417]
[1749001005784,27.5352,156.52,156.44,12.90889417]
[1749001005962,12.90889417,156.48,156.43,66.14889417]
[1749001006162,12.90889417,156.49,156.44,12.90889417]
[1749001007390,12.90889417,156.51,156.47,12.90889417]
[1749001007699,12.90889417,156.52,156.48,41.16]
[1749001007868,12.90889417,156.52,156.49,11.42]
[1749001010773,27.6308,156.56,156.49,11.42]
[1749001010976,12.90889417,156.51,156.49,11.42]
[1749001011994,27.6308,156.56,156.49,11.42]
[1749001012180,12.90889417,156.52,156.49,11.42]
[1749001015285,12.90889417,156.51,156.49,11.42]
[1749001015466,27.6308,156.56,156.49,11.42]
[1749001015670,12.90889417,156.52,156.49,11.42]
[1749001020709,1.6308,156.56,156.49,11.42]
[1749001020914,12.90889417,156.53,156.49,24.32889417]
[1749001021281,12.90889417,156.52,156.49,11.42]
[1749001022793,1.6308,156.56,156.5,12.90889417]
[1749001022997,12.90889417,156.53,156.49,24.32889417]
[1749001023228,1.6308,156.56,156.49,11.42]
[1749001023229,12.90889417,156.52,156.49,11.42]
[1749001025201,12.90889417,156.51,156.49,11.42]
[1749001025789,12.90889417,156.51,156.5,40.86]
[1749001025990,12.90889417,156.51,156.5,129.46]
[1749001026305,12.90889417,156.52,156.5,129.46]
[1749001027425,12.90889417,156.53,156.5,129.46]
[1749001028028,12.90889417,156.52,156.5,129.46]
[1749001028838,12.90889417,156.53,156.51,11.42]
[1749001029512,14.53969417,156.56,156.52,40.8]
[1749001029711,14.53969417,156.56,156.52,129.4]
[1749001029712,12.90889417,156.53,156.52,129.4]
[1749001031746,1.6308,156.56,156.52,129.4]
[1749001032240,12.90889417,156.54,156.52,129.4]
[1749001032453,1.6308,156.56,156.52,129.4]
[1749001032620,12.90889417,156.54,156.52,40.8]
[1749001033638,12.90889417,156.55,156.52,40.8]
[1749001033841,12.90889417,156.57,156.52,53.70889417]
[1749001034148,12.90889417,156.57,156.53,12.90889417]
[1749001034645,12.90889417,156.57,156.52,53.70889417]
[1749001034935,12.90889417,156.56,156.52,40.8]
[1749001035111,12.90889417,156.56,156.52,129.4]
[1749001036035,12.90889417,156.55,156.52,129.4]
[1749001036418,12.90889417,156.53,156.52,129.4]
[1749001036641,12.90889417,156.53,156.52,40.8]
[1749001036843,12.90889417,156.54,156.52,40.8]
[1749001039335,12.90889417,156.55,156.52,40.8]
[1749001039652,26.0,156.57,156.52,53.70889417]
[1749001039653,12.90889417,156.56,156.52,53.70889417]
[1749001041333,12.90889417,156.54,156.53,40.58]
[1749001041728,12.90889417,156.54,156.51,100.02]
[1749001041949,12.90889417,156.54,156.52,40.58]
[1749001042553,12.90889417,156.53,156.52,40.58]
[1749001042765,12.90889417,156.54,156.52,40.58]
[1749001043327,12.90889417,156.53,156.52,40.58]
[1749001045334,12.90889417,156.55,156.52,40.58]
[1749001045544,12.90889417,156.56,156.52,129.18]
[1749001046053,12.90889417,156.55,156.52,129.18]
[1749001047333,12.90889417,156.54,156.52,129.18]
[1749001047528,12.90889417,156.53,156.52,88.6]
[1749001048240,12.90889417,156.53,156.52,129.06]
[1749001048640,14.46499417,156.54,156.52,129.06]
[1749001049145,12.90889417,156.53,156.52,129.06]
[1749001050784,14.46499417,156.54,156.52,129.06]
[1749001051273,12.90889417,156.54,156.52,129.06]
[1749001053453,12.90889417,156.53,156.52,129.06]
[1749001055248,6.0525,156.56,156.52,129.06]
[1749001055471,12.90889417,156.54,156.52,129.06]
[1749001056663,12.90889417,156.53,156.52,129.06]
[1749001056868,12.90889417,156.53,156.52,128.96]
[1749001058173,44.96139417,156.56,156.52,128.96]
[1749001058365,12.90889417,156.53,156.52,128.96]
[1749001059042,1.5194,156.52,156.51,11.42]
[1749001059242,1.5194,156.52,156.51,51.82]
[1749001059243,14.42829417,156.52,156.51,51.82]
[1749001059970,14.42829417,156.52,156.51,11.42]
[1749001060280,14.42829417,156.52,156.51,51.8]
[1749001061152,14.42829417,156.52,156.51,11.42]
[1749001061359,14.42829417,156.52,156.51,51.78]
[1749001062455,38.90889417,156.52,156.51,51.78]
[1749001063172,38.90889417,156.52,156.51,40.36]
[1749001064953,12.90889417,156.52,156.51,128.96]
[1749001083836,46.51629417,156.56,156.51,274.96]
[1749001083837,12.90889417,156.54,156.51,274.96]
[1749001084114,12.90889417,156.55,156.51,274.96]
[1749001085187,12.90889417,156.54,156.51,274.96]
[1749001088497,12.90889417,156.53,156.51,274.96]
[1749001088686,26.0,156.59,156.51,274.96]
[1749001088687,12.90889417,156.52,156.51,274.96]
[1749001088886,12.90889417,156.52,156.51,128.96]
[1749001091617,12.90889417,156.52,156.51,88.6]
[1749001092316,12.90889417,156.52,156.51,128.66]
[1749001092494,12.90889417,156.52,156.51,88.6]
[1749001092693,12.90889417,156.52,156.51,128.66]
[1749001093302,12.90889417,156.52,156.5,10.9]
[1749001093502,12.90889417,156.51,156.5,10.9]
[1749001093817,12.90889417,156.51,156.5,40.06]
[1749001101210,12.90889417,156.51,156.49,10.7]
[1749001101525,32.0509,156.54,156.5,40.06]
[1749001102033,0.28432314,156.53,156.49,10.7]
[1749001102238,1.519,156.52,156.45,10.7]
[1749001102533,1.519,156.52,156.46,40.06]
[1749001102743,12.90889417,156.47,156.46,40.06]
[1749001103451,12.90889417,156.47,156.45,10.7]
[1749001103745,12.90889417,156.46,156.45,10.7]
[1749001104247,12.90889417,156.46,156.45,50.76]
[1749001104448,12.90889417,156.46,156.45,10.7]
[1749001104630,12.90889417,156.46,156.45,50.76]
[1749001105033,14.57069417,156.46,156.45,10.7]
[1749001105230,14.57069417,156.46,156.45,40.06]
[1749001106540,14.57069417,156.46,156.42,55.14]
[1749001106750,1.6618,156.46,156.43,40.06]
[1749001107051,12.90889417,156.44,156.43,40.06]
[1749001107252,12.90889417,156.44,156.42,55.14]
[1749001107451,1.6618,156.46,156.43,40.06]
[1749001107820,1.6618,156.46,156.41,10.7]
[1749001108055,26.0,156.45,156.42,40.06]
[1749001108252,26.0,156.43,156.41,10.7]
[1749001108452,26.0,156.43,156.42,40.06]
[1749001108837,12.90889417,156.43,156.42,40.06]
[1749001110659,12.90889417,156.43,156.41,10.7]
[1749001110958,26.0,156.44,156.42,40.06]
[1749001111135,26.0,156.44,156.41,10.7]
[1749001111327,26.0,156.44,156.37,8.33333333]
[1749001111527,26.0,156.44,156.38,40.06]
[1749001111528,0.28432314,156.43,156.38,40.06]
[1749001111744,0.28432314,156.43,156.37,19.03333333]
[1749001111745,6.60622314,156.43,156.37,19.03333333]
[1749001111948,6.60622314,156.43,156.38,40.06]
[1749001112229,12.90889417,156.39,156.38,40.06]
[1749001112746,12.90889417,156.39,156.37,19.03333333]
[1749001112963,12.90889417,156.38,156.37,19.03333333]
[1749001113166,12.90889417,156.38,156.37,59.09333333]
[1749001113465,12.90889417,156.38,156.37,19.03333333]
[1749001113938,12.90889417,156.38,156.37,59.09333333]
[1749001116133,26.0,156.42,156.37,59.09333333]
[1749001116332,24.86194886,156.47,156.37,72.0022275]
[1749001116646,12.90889417,156.41,156.37,306.6022275]
[1749001116823,12.90889417,156.4,156.37,293.69333333]
[1749001122140,12.90889417,156.41,156.37,306.6022275]
[1749001122463,12.90889417,156.43,156.39,12.90889417]
[1749001122642,12.90889417,156.46,156.42,12.90889417]
[1749001122831,12.90889417,156.46,156.43,50.76]
[1749001123534,12.90889417,156.45,156.43,50.76]
[1749001125537,12.90889417,156.47,156.43,50.76]
[1749001126368,12.90889417,156.46,156.43,50.76]
[1749001126667,12.90889417,156.46,156.43,285.36]
[1749001130051,1.5065,156.5,156.43,285.36]
[1749001130260,12.90889417,156.48,156.43,298.26889417]
[1749001130759,14.41539417,156.5,156.45,12.90889417]
[1749001130964,14.41539417,156.5,156.44,12.90889417]
[1749001130965,12.90889417,156.49,156.44,12.90889417]
[1749001131265,12.90889417,156.49,156.45,12.90889417]
[1749001132638,12.90889417,156.49,156.44,12.90889417]
[1749001134467,12.90889417,156.48,156.44,12.90889417]
[1749001135468,12.90889417,156.48,156.45,40.06]
[1749001135970,12.90889417,156.48,156.45,274.66]
[1749001136656,12.90889417,156.46,156.44,88.6]
[1749001136859,12.90889417,156.45,156.43,10.7]
[1749001137058,12.90889417,156.46,156.43,10.7]
[1749001137249,12.90889417,156.46,156.44,40.06]
[1749001138947,12.90889417,156.46,156.45,40.06]
[1749001140148,1.5065,156.5,156.45,40.06]
[1749001140473,12.90889417,156.46,156.45,40.06]
[1749001141345,12.90889417,156.46,156.43,10.7]
[1749001141548,12.90889417,156.46,156.44,40.04]
[1749001144971,12.90889417,156.46,156.44,128.64]
[1749001145170,12.90889417,156.48,156.44,128.64]
[1749001145351,1.5065,156.5,156.44,141.54889417]
[1749001145550,6.2114,156.51,156.47,12.90889417]
[1749001145551,12.90889417,156.51,156.47,12.90889417]
[1749001145974,12.90889417,156.51,156.44,128.64]
[1749001145975,12.90889417,156.48,156.44,88.6]
[1749001146175,12.90889417,156.45,156.41,12.90889417]
[1749001146364,12.90889417,156.45,156.42,50.74]
[1749001147090,12.90889417,156.46,156.42,50.74]
[1749001147293,1.5944,156.48,156.42,50.74]
[1749001147294,12.90889417,156.45,156.43,40.04]
[1749001147967,1.5944,156.48,156.43,40.04]
[1749001148168,12.90889417,156.45,156.44,40.04]
[1749001151684,12.90889417,156.45,156.42,10.7]
[1749001151895,12.90889417,156.45,156.43,40.04]
[1749001155988,1.5944,156.48,156.44,40.04]
[1749001156184,12.90889417,156.46,156.44,40.04]
[1749001156666,12.90889417,156.46,156.44,128.64]
[1749001156862,12.90889417,156.45,156.44,128.64]
[1749001157469,1.5944,156.48,156.44,128.64]
[1749001157695,12.90889417,156.45,156.44,128.64]
[1749001159873,12.90889417,156.46,156.44,128.64]
[1749001160392,12.90889417,156.45,156.44,128.64]
[1749001161377,12.90889417,156.47,156.44,128.64]
[1749001162393,11.46709195,156.53,156.46,12.90889417]
[1749001162595,12.90889417,156.51,156.46,101.50889417]
[1749001162995,12.90889417,156.5,156.46,88.6]
[1749001163194,12.90889417,156.49,156.46,88.6]
[1749001166300,7.8042,156.53,156.46,88.6]
[1749001166602,12.90889417,156.49,156.44,141.54889417]
[1749001167676,7.8042,156.53,156.44,141.54889417]
[1749001167877,12.90889417,156.49,156.44,287.54889417]
[1749001168173,12.90889417,156.54,156.48,12.90889417]
[1749001168480,12.90889417,156.53,156.49,63.60889417]
[1749001169079,12.90889417,156.53,156.49,50.7]
[1749001169318,12.90889417,156.52,156.49,50.7]
[1749001170182,1.6062,156.57,156.49,50.7]
[1749001170505,0.14216157,156.56,156.49,50.7]
[1749001170707,12.90889417,156.5,156.49,10.68]
[1749001170879,12.90889417,156.5,156.49,50.7]
[1749001171294,12.90889417,156.5,156.49,10.68]
[1749001171599,12.90889417,156.5,156.49,50.7]
[1749001173613,12.90889417,156.5,156.49,10.68]
[1749001173782,12.90889417,156.5,156.49,50.7]
[1749001174502,12.90889417,156.5,156.49,40.02]
[1749001174701,13.05105574,156.5,156.49,40.02]
[1749001175899,13.05105574,156.5,156.45,10.68]
[1749001176094,12.90889417,156.46,156.45,10.68]
[1749001176293,12.90889417,156.46,156.45,50.7]
[1749001178787,12.90889417,156.46,156.45,10.68]
[1749001178989,12.90889417,156.46,156.45,50.7]
[1749001183321,12.90889417,156.46,156.45,139.3]
[1749001184219,12.90889417,156.47,156.45,139.3]
[1749001185102,1.5539,156.48,156.45,139.3]
[1749001185322,12.90889417,156.49,156.45,298.20889417]
[1749001185824,12.90889417,156.5,156.45,298.20889417]
[1749001186210,12.90889417,156.49,156.45,298.20889417]
[1749001186511,12.90889417,156.49,156.45,285.3]
[1749001188702,12.90889417,156.49,156.45,298.20889417]
[1749001189020,12.90889417,156.5,156.45,298.20889417]
[1749001189726,12.90889417,156.49,156.45,298.20889417]
[1749001193218,12.90889417,156.47,156.45,245.28]
[1749001193403,12.90889417,156.46,156.45,10.68]
[1749001193603,12.90889417,156.46,156.45,50.68]
[1749001194899,12.90889417,156.46,156.45,10.68]
[1749001195141,12.90889417,156.46,156.45,50.68]
[1749001196407,12.90889417,156.46,156.45,10.68]
[1749001196624,12.90889417,156.46,156.45,50.68]
[1749001203606,12.90889417,156.46,156.45,40.0]
[1749001204425,12.90889417,156.46,156.43,10.66]
[1749001204649,12.90889417,156.44,156.43,10.66]
[1749001204816,12.90889417,156.44,156.43,50.66]
[1749001206029,12.90889417,156.44,156.43,50.64]
[1749001208119,12.90889417,156.44,156.43,50.66]
[1749001208740,12.90889417,156.44,156.43,40.0]
[1749001209537,13.05105574,156.44,156.39,99.26]
[1749001209847,12.90889417,156.4,156.39,99.26]
[1749001210048,12.90889417,156.4,156.39,139.26]
[1749001212229,12.90889417,156.42,156.39,139.26]
[1749001212457,1.587,156.47,156.4,12.90889417]
[1749001212767,12.90889417,156.48,156.43,12.90889417]